bitfinex-derivatives/quotes_SOLF0:USTF0_20250310
["timestamp","ask_amount","ask_price","bid_price","bid_amount"]
[1741608547116,2.0281,130.25,130.13,35.64200241]
[1741608547515,2.0281,130.25,130.11,81.48292589]
[1741608547516,0.04919849,130.2,130.18,0.05429677]
[1741608547716,7.6801,130.19,130.18,0.05429677]
[1741608548216,7.73455364,130.2,130.18,0.05429677]
[1741608548419,0.05475364,130.2,130.18,0.05429677]
[1741608549317,7.6801,130.19,130.18,0.05429677]
[1741608549721,0.05475364,130.2,130.11,18.25995068]
[1741608550021,35.64200241,130.21,130.08,35.64200241]
[1741608550332,35.64200241,130.18,130.09,7.6856]
[1741608550521,7.6835,130.14,130.09,7.6856]
[1741608550823,0.0491896,130.13,130.06,0.266]
[1741608551022,0.0491896,130.13,130.05,35.64200241]
[1741608551417,7.6858,130.1,130.05,43.33010241]
[1741608551722,7.7431672,130.1,130.05,7.6881]
[1741608551920,0.0573672,130.1,130.02,35.90800241]
[1741608552225,7.6848,130.11,130.03,1.35777995]
[1741608552416,2.407e-05,130.07,130.05,35.64200241]
[1741608552621,2.0515,130.14,130.1,7.6853]
[1741608552823,1.9589,130.17,130.08,35.64200241]
[1741608553118,1.9401,130.24,130.13,35.64200241]
[1741608553319,1.9401,130.24,130.16,35.64200241]
[1741608553320,4.027,130.24,130.16,35.64200241]
[1741608553719,0.05272568,130.21,130.19,0.05201481]
[1741608554417,0.05272568,130.21,130.13,35.64200241]
[1741608554918,4.027,130.24,130.13,35.64200241]
[1741608555427,35.69765624,130.2,130.1,35.64200241]
[1741608555820,35.64200241,130.2,130.07,35.76090241]
[1741608556025,0.05031254,130.16,130.05,35.90730241]
[1741608556326,3.9418,130.17,130.1,7.6853]
[1741608556512,0.05115271,130.12,130.06,62.0]
[1741608559523,0.05632056,130.08,130.01,35.90730241]
[1741608559723,7.74332056,130.08,130.01,35.90730241]
[1741608559921,7.74332056,130.08,130.02,62.0]
[1741608560121,0.05632056,130.08,130.04,7.6888]
[1741608560429,0.05632056,130.08,130.02,62.0]
[1741608560833,0.05632056,130.08,130.03,35.64200241]
[1741608562228,0.05632056,130.08,130.05,7.6878]
[1741608562422,0.05632056,130.08,130.03,35.64200241]
[1741608563418,0.05632056,130.08,130.06,35.64200241]
[1741608563831,22.63,130.15,130.06,35.64200241]
[1741608564027,22.63,130.15,130.09,35.64200241]
[1741608564222,22.63,130.15,130.12,7.6837]
[1741608564423,22.63,130.15,130.09,35.64200241]
[1741608564722,22.63,130.15,130.07,0.1711]
[1741608564723,22.63,130.15,130.14,7.6831]
[1741608564922,22.1246,130.15,130.14,43.32510241]
[1741608565119,22.1246,130.15,130.13,0.05423651]
[1741608565318,7.6831,130.14,130.13,0.05423651]
[1741608565530,24.1698,130.15,130.06,1.35739948]
[1741608565727,7.6834,130.14,130.12,0.05798263]
[1741608565928,26.2934,130.15,130.05,35.64200241]
[1741608566134,0.04993796,130.12,130.09,0.04985325]
[1741608566827,3.796e-05,130.12,130.11,43.32680241]
[1741608567222,3.796e-05,130.12,130.11,105.32680241]
[1741608567628,3.796e-05,130.12,130.11,69.6848]
[1741608567823,20.0,130.11,130.0,1.33761267]
[1741608568129,35.64200241,130.08,129.95,37.73920241]
[1741608568329,7.6883,130.06,129.96,9.05466534]
[1741608568532,35.64200241,130.08,129.97,1.36116534]
[1741608568732,35.64200241,130.11,129.98,35.64200241]
[1741608569036,0.05338031,130.04,130.01,0.05369397]
[1741608569327,7.6888,130.05,129.95,45.43300241]
[1741608569533,0.05706215,130.04,130.01,0.04994939]
[1741608569829,0.048877,130.04,130.01,0.04994939]
[1741608571129,7.6902,130.02,130.01,0.04994939]
[1741608571327,0.048877,130.04,129.95,2.0972]
[1741608571633,35.64200241,130.02,129.93,1.9917]
[1741608572526,7.6925,129.98,129.96,0.02369012]
[1741608572837,0.05021375,129.99,129.96,0.02369012]
[1741608573639,7.6931,129.97,129.96,0.02369012]
[1741608574335,7.6931,129.97,129.96,62.02369012]
[1741608574529,7.6931,129.97,129.96,0.02369012]
[1741608574831,7.74251375,129.99,129.96,0.02369012]
[1741608575236,0.05021375,129.99,129.96,0.02369012]
[1741608575529,7.6931,129.97,129.96,0.02369012]
[1741608575731,0.05021375,129.99,129.96,0.02369012]
[1741608576635,7.6931,129.97,129.96,0.02369012]
[1741608576838,0.05021375,129.99,129.96,0.02369012]
[1741608577642,7.6931,129.97,129.96,0.02369012]
[1741608578133,0.05021375,129.99,129.96,0.02369012]
[1741608579727,0.05021375,129.99,129.96,7.71729012]
[1741608579932,0.05021375,129.99,129.96,35.66569253]
[1741608580334,0.05021375,129.99,129.98,7.6925]
[1741608580531,0.05021375,129.99,129.96,35.66569253]
[1741608580936,0.05021375,129.99,129.97,7.6927]
[1741608581136,0.05021375,129.99,129.96,35.66569253]
[1741608581338,0.05021375,129.99,129.97,7.6926]
[1741608581539,0.05021375,129.99,129.96,35.66569253]
[1741608582040,0.05021375,129.99,129.98,7.6925]
[1741608582242,0.05021375,129.99,129.96,35.66569253]
[1741608582429,0.05021375,129.99,129.97,7.6927]
[1741608582626,0.05021375,129.99,129.96,35.66569253]
[1741608583035,0.05021375,129.99,129.97,7.6931]
[1741608583534,0.05021375,129.99,129.98,7.6925]
[1741608584131,0.05021375,129.99,129.96,35.66569253]
[1741608584436,0.05021375,129.99,129.96,0.02369012]
[1741608585341,0.05021375,129.99,129.96,7.71709012]
[1741608585547,0.05021375,129.99,129.96,0.02369012]
[1741608585837,0.05021375,129.99,129.98,7.6925]
[1741608586030,0.05021375,129.99,129.96,0.02369012]
[1741608587043,7.6926,129.98,129.96,0.02369012]
[1741608587729,0.05021375,129.99,129.96,0.02369012]
[1741608588335,0.05021375,129.99,129.96,7.71709012]
[1741608588542,0.05021375,129.99,129.96,0.02369012]
[1741608588839,0.05021375,129.99,129.98,7.6925]
[1741608591240,0.05021375,129.99,129.96,0.02369012]
[1741608592843,0.05021375,129.99,129.97,7.6928]
[1741608593746,0.05021375,129.99,129.96,0.02369012]
[1741608593747,0.05021375,129.99,129.98,7.6925]
[1741608594141,0.05021375,129.99,129.97,7.6928]
[1741608594535,0.05021375,129.99,129.96,0.02369012]
[1741608594845,0.05021375,129.99,129.97,7.6931]
[1741608596147,7.74241375,129.99,129.97,7.6931]
[1741608596339,0.05021375,129.99,129.96,0.02369012]
[1741608596842,7.6929,129.98,129.96,0.02369012]
[1741608597240,0.05021375,129.99,129.96,0.02369012]
[1741608597441,7.74241375,129.99,129.97,7.6931]
[1741608598040,7.74241375,129.99,129.96,7.71709012]
[1741608598041,0.05021375,129.99,129.96,7.71709012]
[1741608598443,0.05021375,129.99,129.96,0.02369012]
[1741608598642,0.05021375,129.99,129.96,7.71709012]
[1741608599145,0.05021375,129.99,129.97,7.6927]
[1741608599749,0.05021375,129.99,129.96,7.71719012]
[1741608599750,7.6925,129.98,129.96,7.71719012]
[1741608599942,0.05021375,129.99,129.96,0.02369012]
[1741608600137,0.05021375,129.99,129.96,12.02369012]
[1741608600545,7.6931,129.97,129.96,12.02369012]
[1741608600745,2.1303,129.98,129.85,70.13931286]
[1741608601046,1.9456,129.97,129.87,1.36443082]
[1741608601238,37.58760241,129.97,129.86,6.0087]
[1741608601649,35.64200241,129.94,129.83,117.1249283]
[1741608601845,0.05575258,129.93,129.84,2.0159]
[1741608602143,35.64200241,129.94,129.83,85.47572589]
[1741608602353,0.05731574,129.9,129.83,85.47572589]
[1741608602643,7.75481574,129.9,129.83,85.47572589]
[1741608602856,0.05731574,129.9,129.83,85.47572589]
[1741608603243,0.05731574,129.9,129.84,35.64200241]
[1741608603954,37.58760241,129.97,129.87,35.64200241]
[1741608604250,37.58760241,129.97,129.84,35.64200241]
[1741608605146,0.05202919,129.92,129.89,0.04971217]
[1741608605650,0.05202919,129.92,129.91,7.6967]
[1741608605848,4.2118,129.98,129.89,0.05357951]
[1741608606047,4.2118,129.98,129.87,35.64200241]
[1741608606353,4.2118,129.98,129.85,35.64200241]
[1741608606354,4.2118,129.98,129.88,35.64200241]
[1741608606745,2.0815,129.98,129.91,35.64200241]
[1741608606940,7.692,129.99,129.91,35.64200241]
[1741608607148,0.05175787,129.94,129.92,0.048369]
[1741608607346,2.0006,130.01,129.93,62.0]
[1741608607347,7.6915,130.0,129.93,62.0]
[1741608607541,2.0006,130.01,129.95,7.6939]
[1741608607750,2.0006,130.01,129.92,3.9671]
[1741608607944,7.692,129.99,129.92,3.9671]
[1741608608144,2.0006,130.01,129.92,3.9671]
[1741608608349,9.6916,130.01,129.92,3.9671]
[1741608608548,0.04948215,129.98,129.95,0.05178544]
[1741608609854,0.04948215,129.98,129.97,7.6931]
[1741608610849,0.04948215,129.98,129.97,69.6931]
[1741608611750,17.47,130.03,130.02,7.6902]
[1741608611942,17.47,130.03,129.98,2.0512]
[1741608612860,0.04965452,130.02,129.99,0.05597844]
[1741608613157,0.04965452,130.02,130.01,7.6907]
[1741608613955,17.47,130.03,130.0,35.64200241]
[1741608614255,1.9237,130.12,130.0,35.64200241]
[1741608614556,1.9237,130.12,130.07,7.6867]
[1741608614759,1.9237,130.12,130.03,35.64200241]
[1741608615052,1.9237,130.12,130.07,7.6869]
[1741608615257,0.057236,130.09,130.06,0.05268046]
[1741608615653,0.057236,130.09,130.07,7.6868]
[1741608616059,0.057236,130.09,130.06,0.05268046]
[1741608616255,0.057236,130.09,130.08,7.6866]
[1741608616458,0.057236,130.09,130.06,0.05268046]
[1741608617255,0.057236,130.09,130.06,35.69468287]
[1741608617451,0.057236,130.09,130.08,7.6866]
[1741608617657,0.057236,130.09,130.08,69.6866]
[1741608619261,0.057236,130.09,130.06,0.05268046]
[1741608619662,0.057236,130.09,130.08,7.6866]
[1741608619862,0.057236,130.09,130.06,35.69468287]
[1741608620256,0.057236,130.09,130.08,7.6866]
[1741608621354,0.057236,130.09,130.06,35.69468287]
[1741608622356,0.057236,130.09,130.07,62.0]
[1741608623162,0.057236,130.09,130.08,7.6866]
[1741608623662,0.057236,130.09,130.07,69.6868]
[1741608623861,0.057236,130.09,130.07,62.0]
[1741608624259,0.057236,130.09,130.08,7.6866]
[1741608624458,7.6866,130.08,130.07,62.0]
[1741608624663,0.057236,130.09,130.06,0.05268046]
[1741608625160,7.743536,130.09,130.06,0.05268046]
[1741608625557,7.6872,130.07,130.06,0.05268046]
[1741608626160,0.057236,130.09,130.06,0.05268046]
[1741608626659,7.6867,130.08,130.06,0.05268046]
[1741608626864,0.057236,130.09,130.06,0.05268046]
[1741608627960,7.687,130.08,130.06,0.05268046]
[1741608628564,0.057236,130.09,130.06,0.05268046]
[1741608628765,0.057236,130.09,130.06,7.74018046]
[1741608628966,7.687,130.08,130.06,0.05268046]
[1741608629360,0.057236,130.09,130.06,0.05268046]
[1741608629662,7.6872,130.07,130.06,0.05268046]
[1741608631067,0.057236,130.09,130.0,2.0174]
[1741608631365,35.64200241,130.11,130.02,7.6902]
[1741608631958,7.6888,130.05,130.02,7.6902]
[1741608632158,0.05343416,130.08,130.02,7.6902]
[1741608632361,15.3709,130.1,130.02,0.05395864]
[1741608632560,7.6897,130.03,130.02,0.05395864]
[1741608632758,0.05204759,130.06,130.0,62.0]
[1741608632953,2.1129,130.09,130.01,0.05504658]
[1741608632954,7.6905,130.02,130.01,0.05504658]
[1741608633161,0.05587791,130.04,129.95,2.1301]
[1741608633361,35.64200241,130.06,130.0,0.05688815]
[1741608633666,7.74030544,130.01,130.0,0.05688815]
[1741608633870,7.6907,130.01,130.0,0.05688815]
[1741608634058,0.0554899,130.02,129.95,2.1301]
[1741608634258,0.0554899,130.02,129.93,3.9351]
[1741608634458,35.64200241,130.0,129.9,37.77200241]
[1741608634659,7.6933,129.97,129.9,37.77200241]
[1741608634861,1.9422,129.99,129.91,1.35956131]
[1741608635467,0.05063049,129.96,129.94,0.05079277]
[1741608635665,0.05063049,129.96,129.94,7.74519277]
[1741608635873,0.05063049,129.96,129.94,0.05079277]
[1741608636364,0.05063049,129.96,129.89,7.6977]
[1741608636565,0.05063049,129.96,129.85,39.76180241]
[1741608636763,0.05063049,129.96,129.86,1.9344]
[1741608636963,7.6961,129.92,129.86,1.9344]
[1741608637362,37.67630241,129.97,129.86,1.9344]
[1741608637568,0.05843944,129.9,129.88,0.04854233]
[1741608637967,7.6958,129.93,129.89,7.6973]
[1741608638164,0.05472296,129.9,129.89,7.6973]
[1741608638565,2.0343,129.97,129.87,35.64200241]
[1741608638764,0.05608993,129.91,129.88,0.05633165]
[1741608638969,2.0662,129.98,129.89,35.64200241]
[1741608639358,1.9422,129.99,129.9,62.0]
[1741608639564,1.9422,129.99,129.95,7.6942]
[1741608639766,1.9422,129.99,129.92,35.64200241]
[1741608639970,35.64200241,130.04,129.92,35.64200241]
[1741608640163,7.69,130.03,129.98,7.6925]
[1741608640379,0.04972624,129.99,129.98,7.6925]
[1741608640676,7.6906,130.02,129.97,7.6927]
[1741608640877,0.05591931,130.0,129.97,0.05514561]
[1741608641172,7.6925,129.98,129.94,7.6947]
[1741608641370,0.05591931,130.0,129.9,35.64200241]
[1741608641670,7.6924,129.99,129.9,35.64200241]
[1741608641872,35.64200241,130.01,129.9,35.64200241]
[1741608642174,7.6919,129.99,129.9,35.64200241]
[1741608642366,0.05861874,129.97,129.94,0.05439276]
[1741608642967,0.05861874,129.97,129.95,7.694]
[1741608644866,0.05861874,129.97,129.95,7.6938]
[1741608645069,0.05861874,129.97,129.94,0.05439276]
[1741608645467,0.05861874,129.97,129.96,7.6937]
[1741608646869,37.72520241,130.04,129.94,0.05439276]
[1741608647070,37.72520241,130.04,129.93,35.64200241]
[1741608647269,7.6934,129.97,129.9,41.84280241]
[1741608647677,35.64200241,130.01,129.9,41.84280241]
[1741608647978,7.692,129.99,129.9,41.84280241]
[1741608648171,0.04986578,129.97,129.95,7.694]
[1741608648877,0.04986578,129.97,129.96,7.6937]
[1741608649080,0.04986578,129.97,129.94,0.05731352]
[1741608649771,0.04986578,129.97,129.95,7.694]
[1741608649973,0.04986578,129.97,129.94,0.05731352]
[1741608650570,7.6943,129.95,129.94,0.05731352]
[1741608651176,7.6963,129.92,129.87,39.75130241]
[1741608651370,0.04986578,129.97,129.87,39.75130241]
[1741608651371,3.8908,129.96,129.87,39.75130241]
[1741608651965,3.8908,129.96,129.88,62.0]
[1741608652169,7.6934,129.97,129.89,35.64200241]
[1741608652366,0.0552831,129.93,129.91,0.05803313]
[1741608652771,7.6936,129.97,129.89,35.64200241]
[1741608652966,0.0535528,129.93,129.91,0.05793162]
[1741608653877,0.00543494,129.93,129.92,7.6961]
[1741608655676,2.129,130.0,129.91,35.69993403]
[1741608655878,2.129,130.0,129.91,35.64200241]
[1741608656078,7.6931,129.98,129.91,35.64200241]
[1741608656284,37.77100241,130.0,129.89,35.64200241]
[1741608656686,7.6934,129.97,129.89,35.64200241]
[1741608656881,7.6934,129.97,129.94,7.6948]
[1741608657088,0.04971934,129.96,129.93,0.05743705]
[1741608657289,0.04971934,129.96,129.94,7.6948]
[1741608657680,0.04971934,129.96,129.93,0.05743705]
[1741608657882,7.6949,129.94,129.93,0.05743705]
[1741608658187,0.04971934,129.96,129.93,0.05743705]
[1741608658387,7.6948,129.95,129.93,0.05743705]
[1741608658589,0.04971934,129.96,129.93,0.05743705]
[1741608658982,7.6949,129.94,129.93,0.05743705]
[1741608660988,7.6949,129.94,129.93,3.705e-05]
[1741608661680,11.5349,129.94,129.93,3.705e-05]
[1741608661884,3.84,129.94,129.84,19.18830391]
[1741608662083,19.18830391,129.92,129.85,7.6999]
[1741608662388,2.0578,129.93,129.79,21.97180508]
[1741608662389,30.73605735,129.91,129.8,30.73605735]
[1741608662691,30.73605735,129.85,129.78,81.48292589]
[1741608662987,0.04967082,129.83,129.78,81.48292589]
[1741608665994,0.05191334,129.76,129.73,201.19809365]
[1741608666698,30.73605735,129.85,129.73,201.19809365]
[1741608666993,30.73605735,129.87,129.75,30.73605735]
[1741608667192,30.73605735,129.87,129.74,4.0378]
[1741608667396,30.73605735,129.87,129.75,30.73605735]
[1741608667586,194.075,129.89,129.76,62.0]
[1741608667787,42.06646714,129.87,129.76,62.0]
[1741608668098,0.04909594,129.84,129.81,0.05089846]
[1741608669898,0.04909594,129.84,129.83,7.7014]
[1741608670191,0.04909594,129.84,129.82,1.9869]
[1741608670392,0.04909594,129.84,129.81,0.05089846]
[1741608670594,30.78515329,129.84,129.81,0.05089846]
[1741608671099,0.04909594,129.84,129.81,0.05089846]
[1741608671893,42.06646714,129.91,129.81,0.05089846]
[1741608672093,42.06646714,129.91,129.84,7.7008]
[1741608672293,10.50092661,129.89,129.81,1.9388]
[1741608672998,10.50092661,129.89,129.82,62.0]
[1741608673188,0.05588949,129.86,129.84,0.05422061]
[1741608673395,4.08872661,129.89,129.84,30.79027796]
[1741608673596,4.08872661,129.89,129.86,30.73605735]
[1741608673799,4.08872661,129.89,129.88,7.6984]
[1741608674302,30.73605735,129.96,129.9,7.6972]
[1741608674597,31.56554053,129.97,129.89,30.73605735]
[1741608674801,0.05332275,129.94,129.92,7.6957]
[1741608675002,0.05332275,129.94,129.92,0.05814447]
[1741608678402,30.7893801,129.94,129.85,1.9501]
[1741608678591,30.73605735,129.91,129.82,2.0306]
[1741608678798,30.73605735,129.88,129.79,1.9501]
[1741608678994,30.73605735,129.85,129.73,4.0269]
[1741608679201,30.73605735,129.85,129.73,5.977]
[1741608679700,0.05240797,129.8,129.78,0.05735104]
[1741608680103,1.993,129.84,129.78,0.05735104]
[1741608680304,0.05178423,129.8,129.78,0.05735104]
[1741608680498,7.7038,129.79,129.78,0.05735104]
[1741608680805,0.0536108,129.8,129.78,0.05735104]
[1741608682396,51.9701464,129.89,129.78,0.05735104]
[1741608682602,7.6992,129.87,129.81,7.7026]
[1741608682801,308.12026784,129.92,129.79,49.9771464]
[1741608683006,258.14312144,129.92,129.82,49.9771464]
[1741608683613,7.75135045,129.88,129.85,0.05573625]
[1741608683813,0.05235045,129.88,129.85,0.05573625]
[1741608685909,0.05235045,129.88,129.86,62.0]
[1741608686312,0.05235045,129.88,129.85,0.05573625]
[1741608687503,7.75125045,129.88,129.85,0.05573625]
[1741608687709,0.05235045,129.88,129.85,0.05573625]
[1741608688509,0.05235045,129.88,129.85,3.625e-05]
[1741608688709,7.6996,129.86,129.85,3.625e-05]
[1741608691719,11.5596,129.86,129.85,3.625e-05]
[1741608692620,11.5596,129.86,129.72,49.9771464]
[1741608692621,3.86,129.86,129.72,49.9771464]
[1741608692921,49.9771464,129.82,129.72,49.9771464]
[1741608693120,7.7047,129.78,129.72,49.9771464]
[1741608693315,49.9771464,129.82,129.74,7.7064]
[1741608693511,49.9771464,129.82,129.7,49.9771464]
[1741608693715,0.05080781,129.79,129.7,49.9771464]
[1741608694022,49.9771464,129.82,129.75,0.05806089]
[1741608694520,0.0566995,129.8,129.75,0.05806089]
[1741608694816,7.7056,129.76,129.75,0.05806089]
[1741608695421,0.05082911,129.77,129.75,0.05806089]
[1741608695616,0.0967,129.81,129.75,0.05806089]
[1741608696019,7.7045,129.78,129.75,0.05806089]
[1741608696216,0.05028948,129.79,129.75,0.05806089]
[1741608696630,7.7056,129.76,129.75,0.05806089]
[1741608696823,0.05028948,129.79,129.75,0.05806089]
[1741608697019,7.7056,129.76,129.75,0.05806089]
[1741608697218,0.05028948,129.79,129.75,0.05806089]
[1741608697614,7.7056,129.76,129.75,0.05806089]
[1741608697923,0.05028948,129.79,129.75,0.05806089]
[1741608698221,7.7053,129.77,129.75,0.05806089]
[1741608698421,0.05028948,129.79,129.75,0.05806089]
[1741608699814,7.7056,129.76,129.75,0.05806089]
[1741608700322,49.9771464,129.78,129.68,13.7245]
[1741608700519,49.9771464,129.78,129.68,6.0145]
[1741608700921,7.7077,129.73,129.68,6.0145]
[1741608701116,49.9771464,129.78,129.68,6.0145]
[1741608701518,0.05825531,129.74,129.72,0.03856795]
[1741608701924,192.0,129.83,129.72,50.01571435]
[1741608702123,49.9771464,129.84,129.72,49.9771464]
[1741608702324,30.77009194,129.84,129.72,30.77009194]
[1741608702626,116.10546271,129.82,129.73,62.0]
[1741608702925,116.10546271,129.82,129.76,7.7055]
[1741608703223,0.04945363,129.79,129.76,0.05558876]
[1741608704917,7.7049,129.78,129.76,0.05558876]
[1741608705419,7.705,129.77,129.76,0.05558876]
[1741608705820,0.04945363,129.79,129.76,0.05558876]
[1741608706824,7.705,129.77,129.76,0.05558876]
[1741608710230,7.75375363,129.79,129.76,0.05558876]
[1741608710419,0.04945363,129.79,129.76,0.05558876]
[1741608711633,7.705,129.77,129.76,0.05558876]
[1741608711832,7.705,129.77,129.76,8.876e-05]
[1741608713230,2.94592619,129.86,129.76,253.54027264]
[1741608713431,2.94592619,129.86,129.82,30.77009194]
[1741608713631,2.94592619,129.86,129.79,30.77009194]
[1741608714334,0.0558212,129.84,129.81,0.0501625]
[1741608714723,0.0558212,129.84,129.82,62.0]
[1741608714925,0.0558212,129.84,129.83,7.7014]
[1741608715322,0.1554,129.89,129.82,62.0]
[1741608715531,3.8883,129.91,129.84,30.77009194]
[1741608716430,0.05132649,129.89,129.86,0.05880312]
[1741608717823,2.10522649,129.89,129.86,0.05880312]
[1741608719730,2.10522649,129.89,129.79,1.9992]
[1741608719731,9.80312649,129.89,129.79,1.9992]
[1741608719931,2.0539,129.89,129.79,1.9992]
[1741608720132,9.7522,129.89,129.82,7.7015]
[1741608720435,2.0539,129.89,129.81,30.77009194]
[1741608720633,2.0539,129.89,129.79,1.9992]
[1741608720839,0.04947716,129.86,129.84,0.05084266]
[1741608721138,0.04947716,129.86,129.78,30.77009194]
[1741608721333,0.04947716,129.86,129.81,30.77009194]
[1741608721538,2.0539,129.89,129.81,30.77009194]
[1741608721839,2.0539,129.89,129.82,7.7018]
[1741608722032,2.0539,129.89,129.84,0.03695231]
[1741608722334,0.05896084,129.87,129.84,0.03695231]
[1741608723435,0.05896084,129.87,129.85,7.7002]
[1741608723740,0.05896084,129.87,129.84,0.03695231]
[1741608724037,0.05896084,129.87,129.74,18.14970719]
[1741608724337,30.77009194,129.88,129.77,30.77009194]
[1741608724544,7.7014,129.83,129.78,7.7041]
[1741608724836,30.77009194,129.88,129.73,192.0]
[1741608725037,100.0,129.75,129.71,30.77009194]
[1741608725344,100.0,129.75,129.69,124.33791305]
[1741608725528,0.05560768,129.74,129.69,124.33791305]
[1741608726135,0.05560768,129.74,129.71,30.77009194]
[1741608726342,2.0988,129.81,129.71,30.77009194]
[1741608726646,2.0988,129.81,129.74,30.77009194]
[1741608727042,2.0736,129.83,129.75,62.0]
[1741608727239,2.0736,129.83,129.72,30.77009194]
[1741608727439,7.7042,129.79,129.78,0.05138303]
[1741608727639,0.05292798,129.8,129.7,33.02069194]
[1741608727833,7.7048,129.78,129.71,7.7084]
[1741608728040,32.70319194,129.82,129.7,33.02069194]
[1741608728240,1.9331,129.82,129.7,33.02069194]
[1741608728633,0.05718998,129.77,129.7,33.02069194]
[1741608729033,0.05718998,129.77,129.7,2.06]
[1741608729238,0.05718998,129.77,129.67,30.77009194]
[1741608729548,30.77009194,129.78,129.66,7.7113]
[1741608729746,0.05050234,129.73,129.66,7.7113]
[1741608730047,0.05050234,129.73,129.64,30.77009194]
[1741608730239,30.77009194,129.78,129.65,62.0]
[1741608730639,0.04863638,129.7,129.67,30.77009194]
[1741608730841,32.80859194,129.81,129.66,30.77009194]
[1741608731044,30.77009194,129.78,129.66,30.77009194]
[1741608731347,30.77009194,129.78,129.66,38.48109194]
[1741608731741,30.77009194,129.78,129.65,7.7119]
[1741608731742,30.77009194,129.75,129.65,7.7119]
[1741608732046,0.05870628,129.73,129.63,2.1044]
[1741608732235,7.7091,129.7,129.64,7.7123]
[1741608732441,4.1731,129.74,129.63,2.1044]
[1741608732746,7.7092,129.7,129.65,7.712]
[1741608733248,0.05803322,129.69,129.67,7.7104]
[1741608733439,0.05803322,129.69,129.63,2.1044]
[1741608733638,0.05803322,129.69,129.65,30.77009194]
[1741608733834,0.05803322,129.69,129.66,62.0]
[1741608734647,2.1211,129.74,129.66,62.0]
[1741608735040,7.708,129.72,129.68,7.71]
[1741608735447,2.1211,129.74,129.68,7.71]
[1741608735448,7.7077,129.73,129.68,7.71]
[1741608735648,0.05059023,129.71,129.69,0.05453352]
[1741608736341,2.0817,129.77,129.69,0.05453352]
[1741608736738,2.0817,129.77,129.68,30.77009194]
[1741608737144,2.0641,129.83,129.75,7.7056]
[1741608737342,1.93,129.82,129.71,30.77009194]
[1741608737541,1.93,129.82,129.74,30.77009194]
[1741608737741,1.93,129.82,129.74,38.47629194]
[1741608737943,1.93,129.82,129.66,222.77009194]
[1741608738146,7.7075,129.73,129.67,63.36865715]
[1741608738446,30.77009194,129.79,129.67,62.0]
[1741608738655,7.7054,129.77,129.69,30.82122691]
[1741608738845,1.93,129.82,129.73,7.7068]
[1741608739041,1.93,129.82,129.69,31.02059194]
[1741608739243,7.7069,129.74,129.69,31.02059194]
[1741608739438,7.7069,129.74,129.69,0.2505]
[1741608739639,7.7069,129.74,129.7,7.7088]
[1741608739843,7.76605253,129.73,129.7,7.76339153]
[1741608740048,7.7073,129.73,129.7,7.7088]
[1741608740244,30.77009194,129.81,129.7,0.05759132]
[1741608740444,7.7057,129.76,129.7,30.77009194]
[1741608740645,1.93,129.82,129.7,30.77009194]
[1741608741049,30.77009194,129.8,129.68,30.77009194]
[1741608741452,0.04928528,129.75,129.73,0.05672488]
[1741608741746,0.05373118,129.75,129.73,62.05672488]
[1741608742453,7.76023118,129.75,129.73,62.05672488]
[1741608743240,0.05373118,129.75,129.73,62.05672488]
[1741608745047,0.05373118,129.75,129.74,7.7067]
[1741608745254,0.05373118,129.75,129.73,62.05672488]
[1741608745654,7.7041,129.79,129.73,62.05672488]
[1741608745856,1.93,129.82,129.73,62.0]
[1741608746054,7.7043,129.79,129.73,62.0]
[1741608746255,1.93,129.82,129.73,62.0]
[1741608746644,30.77009194,129.81,129.73,62.0]
[1741608746846,0.05688652,129.79,129.76,8.976e-05]
[1741608747144,30.77009194,129.81,129.68,2.0519]
[1741608747355,1.93,129.82,129.69,30.77009194]
[1741608747560,1.93,129.82,129.72,30.77009194]
[1741608748146,0.05922135,129.78,129.76,0.04944715]
[1741608749550,7.705,129.77,129.76,0.04944715]
[1741608749753,0.05922135,129.78,129.76,62.04944715]
[1741608749952,7.705,129.77,129.76,62.04944715]
[1741608750662,7.705,129.77,129.76,0.04944715]
[1741608751157,7.705,129.77,129.76,4.715e-05]
[1741608751359,0.05922135,129.78,129.68,2.0519]
[1741608751546,1.938,129.76,129.69,7.7094]
[1741608752158,1.938,129.76,129.68,9.7619]
[1741608752464,7.708,129.72,129.71,0.05606524]
[1741608754555,0.05792936,129.73,129.62,2.2204]
[1741608754856,32.70809194,129.76,129.63,1.37230882]
[1741608755059,32.70809194,129.76,129.62,2.2204]
[1741608755255,30.77009194,129.73,129.62,2.2204]
[1741608755458,30.77009194,129.73,129.63,30.77009194]